Workbook

Sheet Sheet1
A1: 0.28 | B1: <--------- column of simulated expected earnings for level 1 subscriptions
A2: 0.27
A3: 0.25 | D3: Uniformly distributed | G3: this is fixed | K3: Randomly distributed | N3: this changes with each simulation
A4: 0.24 | M4: random dist
A5: 0.29 | G5: dist | M5: dist | N5: dist
A6: 0.24 | E6: 10 images per month, monthly no contract | F6: 0.735 | G6: =1/12 -> 0.08333333333 | H6: =F6*G6 -> 0.06125 | K6: 10 images per month, monthly no contract | L6: 0.735 | M6: =RAND() -> 0.2481801288 | N6: =M6/$M$19 -> 0.04678773609 | O6: =L6*N6 -> 0.03438898602 | Q6: Press CTRL B to simulate
A7: 0.3 | E7: 10 images per month, annual with monthly billing | F7: 0.435 | G7: =1/12 -> 0.08333333333 | H7: =F7*G7 -> 0.03625 | K7: 10 images per month, annual with monthly billing | L7: 0.435 | M7: =RAND() -> 0.08548462167 | N7: =M7/$M$19 -> 0.0161158427 | O7: =L7*N7 -> 0.007010391576 | Q7: Iterations | R7: 10000
A8: 0.22 | E8: 10 images per month, annual with advance billing | F8: 0.37375 | G8: 0.08333333333 | H8: 0.03114583333 | K8: 10 images per month, annual with advance billing | L8: 0.37375 | M8: 0.2409066673 | N8: 0.04541651914 | O8: 0.01697442403 | Q8: Current Iteration | R8: 10000
A9: 0.23 | E9: 50 images, monthly no contract | F9: 0.375 | G9: 0.08333333333 | H9: 0.03125 | K9: 50 images, monthly no contract | L9: 0.375 | M9: 0.4104600172 | N9: 0.07738127564 | O9: 0.02901797837 | Q9: % time better with new pay structure | R9: =COUNTIF(A:A,">.25")/R7 -> 0.5107
A10: 0.24 | E10: 50 images, annual with monthly billing | F10: 0.297 | G10: 0.08333333333 | H10: 0.02475 | K10: 50 images, annual with monthly billing | L10: 0.297 | M10: 0.1041317158 | N10: 0.01963125436 | O10: 0.005830482546
A11: 0.33 | E11: 50 images, annual with advance billing | F11: 0.24475 | G11: 0.08333333333 | H11: 0.02039583333 | K11: 50 images, annual with advance billing | L11: 0.24475 | M11: 0.589201704 | N11: 0.1110782477 | O11: 0.02718640113 | Q11: min | R11: =MIN(A:A) -> 0.13
A12: 0.29 | E12: 350 images, monthly no contract | F12: 0.1 | G12: 0.08333333333 | H12: 0.008333333333 | K12: 350 images, monthly no contract | L12: 0.1 | M12: 0.9347522404 | N12: 0.1762225741 | O12: 0.01762225741 | Q12: average | R12: =AVERAGE(A:A) -> 0.255516
A13: 0.23 | E13: 350 images, annual with monthly billing | F13: 0.1 | G13: 0.08333333333 | H13: 0.008333333333 | K13: 350 images, annual with monthly billing | L13: 0.1 | M13: 0.9593941507 | N13: 0.1808681482 | O13: 0.01808681482 | Q13: max | R13: =MAX(A:A) -> 0.38
A14: 0.27 | E14: 350 images, annual with advance billing | F14: 0.1 | G14: 0.08333333333 | H14: 0.008333333333 | K14: 350 images, annual with advance billing | L14: 0.1 | M14: 0.6611252798 | N14: 0.1246375174 | O14: 0.01246375174 | Q14: median | R14: =MEDIAN(A:A) -> 0.26
A15: 0.25 | E15: 750 images, monthly no contract | F15: 0.1 | G15: 0.08333333333 | H15: 0.008333333333 | K15: 750 images, monthly no contract | L15: 0.1 | M15: 0.1705770316 | N15: 0.03215774435 | O15: 0.003215774435
A16: 0.33 | E16: 750 images, annual with monthly billing | F16: 0.1 | G16: 0.08333333333 | H16: 0.008333333333 | K16: 750 images, annual with monthly billing | L16: 0.1 | M16: 0.3059036556 | N16: 0.05766996565 | O16: 0.005766996565
A17: 0.23 | E17: 750 images, annual with advance billing | F17: 0.1 | G17: 0.08333333333 | H17: 0.008333333333 | K17: 750 images, annual with advance billing | L17: 0.1 | M17: 0.5942670035 | N17: 0.1120331747 | O17: 0.01120331747
A18: 0.29
A19: 0.27 | G19: =SUM(G6:G18) -> 1 | H19: =SUM(H6:H17) -> 0.2550416667 | M19: =SUM(M6:M17) -> 5.304384216 | N19: 1 | O19: =SUM(O6:O17) -> 0.1887675761
A20: 0.24
A21: 0.28
A22: 0.25 | O22: expected greater than $.25?
A23: 0.31 | O23: =IF(O19>0.25,1,0) -> 0
A24: 0.24
A25: 0.31
A26: 0.28
A27: 0.27
A28: 0.22
A29: 0.28
A30: 0.27
A31: 0.24
A32: 0.2
A33: 0.29
A34: 0.32
A35: 0.26
A36: 0.32
A37: 0.26
A38: 0.26
A39: 0.26
A40: 0.29
A41: 0.22
A42: 0.29
A43: 0.28
A44: 0.21
A45: 0.26
A46: 0.28
A47: 0.28
A48: 0.21
A49: 0.26
A50: 0.21
A51: 0.28
A52: 0.28
A53: 0.27
A54: 0.3
A55: 0.22
A56: 0.24
A57: 0.24
A58: 0.21
A59: 0.26
A60: 0.25
A61: 0.24
A62: 0.22
A63: 0.28
A64: 0.32
A65: 0.3
A66: 0.26
A67: 0.27
A68: 0.26
A69: 0.29
A70: 0.28
A71: 0.25
A72: 0.27
A73: 0.24
A74: 0.26
A75: 0.23
A76: 0.22
A77: 0.32
A78: 0.25
A79: 0.23
A80: 0.24
A81: 0.23
A82: 0.19
A83: 0.19
A84: 0.25
A85: 0.23
A86: 0.25
A87: 0.24
A88: 0.3
A89: 0.26
A90: 0.2
A91: 0.21
A92: 0.27
A93: 0.19
A94: 0.29
A95: 0.25
A96: 0.27
A97: 0.27
A98: 0.26
A99: 0.3
A100: 0.29
A101: 0.22
A102: 0.3
A103: 0.24
A104: 0.3
A105: 0.26
A106: 0.27
A107: 0.25
A108: 0.27
A109: 0.24
A110: 0.26
A111: 0.24
A112: 0.28
A113: 0.2
A114: 0.26
A115: 0.26
A116: 0.26
A117: 0.24
A118: 0.26
A119: 0.23
A120: 0.29
A121: 0.27
A122: 0.24
A123: 0.21
A124: 0.23
A125: 0.2
A126: 0.28
A127: 0.23
A128: 0.27
A129: 0.26
A130: 0.23
A131: 0.29
A132: 0.26
A133: 0.22
A134: 0.22
A135: 0.21
A136: 0.29
A137: 0.23
A138: 0.27
A139: 0.28
A140: 0.23
A141: 0.26
A142: 0.25
A143: 0.23
A144: 0.19
A145: 0.29
A146: 0.22
A147: 0.28
A148: 0.28
A149: 0.2
A150: 0.2
A151: 0.2
A152: 0.24
A153: 0.29
A154: 0.26
A155: 0.28
A156: 0.29
A157: 0.18
A158: 0.26
A159: 0.3
A160: 0.3
A161: 0.21
A162: 0.25
A163: 0.23
A164: 0.29
A165: 0.25
A166: 0.26
A167: 0.27
A168: 0.28
A169: 0.26
A170: 0.31
A171: 0.3
A172: 0.3
A173: 0.27
A174: 0.23
A175: 0.22
A176: 0.27
A177: 0.25
A178: 0.28
A179: 0.27
A180: 0.24
A181: 0.33
A182: 0.27
A183: 0.31
A184: 0.25
A185: 0.26
A186: 0.2
A187: 0.26
A188: 0.26
A189: 0.23
A190: 0.22
A191: 0.23
A192: 0.22
A193: 0.32
A194: 0.24
A195: 0.22
A196: 0.26
A197: 0.31
A198: 0.21
A199: 0.21
A200: 0.28
... 9800 more rows
